bitfinex-derivatives/quotes_ETHF0:USTF0_20250518
["timestamp","ask_amount","ask_price","bid_price","bid_amount"]
[1747569000218,2.17521,2505.1,2505.0,3.85614]
[1747569000416,1.3771,2505.1,2505.0,3.85614]
[1747569000610,2.17521,2505.1,2505.0,3.058]
[1747569000808,2.17521,2505.1,2505.0,3.85614]
[1747569001103,2.17521,2505.1,2505.0,3.058]
[1747569003417,2.8388242,2505.1,2505.0,3.058]
[1747569004211,2.0407142,2505.1,2505.0,3.85614]
[1747569004415,0.6636142,2505.1,2505.0,3.85614]
[1747569005016,0.6636142,2505.1,2505.0,4.54314]
[1747569005811,0.6636142,2505.1,2505.0,4.63532003]
[1747569006220,2.7835942,2505.2,2505.0,4.63532003]
[1747569006521,2.7835942,2505.2,2505.1,1.3366]
[1747569006711,2.7835842,2505.2,2505.1,2.13471]
[1747569006912,2.7835842,2505.2,2505.1,2.80401]
[1747569008013,2.7835842,2505.2,2505.1,2.0059]
[1747569008222,0.79811,2505.1,2505.0,3.83718003]
[1747569008410,2.08191,2505.1,2505.0,3.15018003]
[1747569009220,2.08191,2505.1,2505.0,0.09218003]
[1747569010225,2.08191,2505.1,2505.0,3.15018003]
[1747569011318,2.08191,2505.1,2505.0,0.09218003]
[1747569012114,2.08191,2505.1,2505.0,3.15018003]
[1747569019229,2.08191,2505.1,2505.0,0.09218003]
[1747569019422,7.08191,2505.1,2505.0,0.09218003]
[1747569019732,0.79826,2504.6,2504.5,1.19429473]
[1747569020030,8.61426,2504.6,2504.5,1.19429473]
[1747569020425,9.96206,2504.6,2504.5,1.19429473]
[1747569020834,0.79839,2504.2,2504.1,2.052]
[1747569021426,0.79839,2504.2,2504.1,1.2536]
[1747569021629,0.79842,2504.1,2504.0,4.40209473]
[1747569022132,0.79842,2504.1,2504.0,8.67312685]
[1747569022828,2.14622,2504.2,2504.0,9.47158685]
[1747569023226,1.3797,2504.1,2504.0,9.47158685]
[1747569023433,1.3797,2504.1,2504.0,6.26378685]
[1747569024135,1.3797,2504.1,2504.0,7.63818685]
[1747569024330,1.3797,2504.1,2504.0,5.23086]
[1747569025432,0.79842,2504.1,2504.0,5.23086]
[1747569025633,2.17812,2504.1,2504.0,5.23086]
[1747569025933,2.17812,2504.1,2504.0,4.4324]
[1747569026335,2.80692,2504.1,2504.0,4.4324]
[1747569026834,2.80692,2504.1,2504.0,5.23086]
[1747569027333,2.0085,2504.1,2504.0,5.23086]
[1747569027535,1.3797,2504.1,2504.0,5.23086]
[1747569027926,9.27234648,2504.2,2504.1,0.79842]
[1747569028121,0.66395648,2504.2,2504.1,2.77532]
[1747569028334,0.66395648,2504.2,2504.1,3.45982]
[1747569028630,8.47395648,2504.3,2504.2,0.79839]
[1747569028825,8.47395648,2504.3,2504.2,2.11899]
[1747569029028,0.66395648,2504.3,2504.2,2.11899]
[1747569029330,0.66395648,2504.3,2504.2,7.11899]
[1747569029530,0.66395648,2504.3,2504.2,2.11899]
[1747569030031,1.46231648,2504.3,2504.2,5.32679]
[1747569030432,0.66395648,2504.3,2504.2,2.11899]
[1747569030632,1.46231648,2504.3,2504.2,3.3297892]
[1747569031042,1.46231648,2504.3,2504.2,2.5313992]
[1747569031633,1.46231648,2504.3,2504.2,3.3297892]
[1747569031834,1.46231648,2504.3,2504.2,1.3206]
[1747569032534,1.46231648,2504.3,2504.2,2.11899]
[1747569032733,0.79836,2504.3,2504.2,2.11899]
[1747569033336,2.09656,2504.3,2504.2,2.11899]
[1747569034039,0.79839,2504.2,2504.1,3.058]
[1747569034229,9.90759,2504.2,2504.1,3.058]
[1747569035124,0.79842,2504.1,2504.0,3.058]
[1747569035331,10.58052,2504.1,2504.0,3.058]
[1747569039434,2.77252,2504.1,2504.0,3.058]
[1747569039639,1.9741,2504.1,2504.0,3.058]
[1747569039828,0.99743587,2504.2,2504.1,0.79842]
[1747569040034,0.99743587,2504.2,2504.1,1.46072]
[1747569040235,0.99743587,2504.2,2504.1,3.36692]
[1747569042736,0.99743587,2504.3,2504.2,0.79839]
[1747569042944,0.99743587,2504.3,2504.2,2.07379]
[1747569043346,0.99743587,2504.3,2504.2,2.16597003]
[1747569044444,1.79579587,2504.3,2504.2,2.16597003]
[1747569045442,0.99743587,2504.3,2504.2,2.16597003]
[1747569045744,1.79579587,2504.3,2504.2,2.16597003]
[1747569046943,0.79836,2504.3,2504.2,2.16596003]
[1747569047646,9.89555,2504.4,2504.3,0.79836]
[1747569047845,9.89555,2504.4,2504.3,2.10066]
[1747569048040,1.2862,2504.4,2504.3,2.10066]
[1747569048343,9.89553,2504.4,2504.3,5.15866]
[1747569048543,9.89553,2504.4,2504.3,4.3603]
[1747569048945,9.89553,2504.4,2504.3,5.15866]
[1747569049140,1.2862,2504.4,2504.3,5.15866]
[1747569049343,9.0972,2504.4,2504.3,5.15866]
[1747569050450,7.811,2504.4,2504.3,5.25084003]
[1747569050843,0.66249691,2504.5,2504.4,0.79833]
[1747569051044,0.66249691,2504.5,2504.4,2.09513]
[1747569051248,2.96003587,2504.6,2504.5,0.7983]
[1747569051441,10.77103587,2504.6,2504.5,2.0951]
[1747569052045,10.77103587,2504.6,2504.5,5.1531]
[1747569052253,11.56932587,2504.6,2504.5,4.3548]
[1747569053239,11.56932587,2504.6,2504.5,3.058]
[1747569057350,14.77712587,2504.6,2504.5,3.058]
[1747569059850,13.77969,2504.6,2504.5,3.058]
[1747569060156,13.77969,2504.6,2503.7,0.79853]
[1747569060157,0.7985,2503.9,2503.7,0.79853]
[1747569060351,7.805,2504.0,2503.7,1.2824]
[1747569060552,0.6635,2503.9,2503.7,1.2824]
[1747569060751,0.79852,2503.8,2503.7,1.2824]
[1747569061045,0.79852,2503.8,2503.7,2.08095]
[1747569061248,2.06072,2503.8,2503.7,3.29775367]
[1747569061856,1.2622,2503.8,2503.7,2.49920367]
[1747569062049,1.2622,2503.8,2503.7,3.29775367]
[1747569062249,2.06072,2503.8,2503.7,2.49920367]
[1747569062849,1.2622,2503.8,2503.7,2.49920367]
[1747569063157,1.2622,2503.8,2503.7,2.08095]
[1747569063350,16.40648,2504.0,2503.8,0.79852]
[1747569063655,16.40648,2504.0,2503.9,2.5487]
[1747569063847,15.608,2504.0,2503.9,3.34719]
[1747569064051,16.60419782,2504.0,2503.9,6.40519]
[1747569064256,0.99619782,2504.0,2503.9,6.40519]
[1747569064756,0.99619782,2504.0,2503.9,6.49737003]
[1747569065849,0.99619782,2504.0,2503.9,7.71365667]
[1747569068460,1.46247939,2504.1,2504.0,0.79846]
[1747569068658,1.46247939,2504.1,2504.0,2.10886]
[1747569069058,0.66405939,2504.1,2504.0,2.10886]
[1747569069358,0.66405939,2504.1,2504.0,5.16686]
[1747569069555,0.66405939,2504.1,2504.0,6.38314664]
[1747569070357,0.66405939,2504.1,2504.0,14.59094664]
[1747569070560,0.66405939,2504.1,2504.0,22.39294664]
[1747569070762,0.66405939,2504.1,2504.0,17.39294664]
[1747569071962,0.66405939,2504.1,2504.0,9.59094664]
[1747569072157,0.66405939,2504.1,2504.0,6.38314664]
[1747569072561,2.07481,2504.2,2504.1,0.79842]
[1747569073265,1.2764,2504.2,2504.1,0.79842]
[1747569073560,1.2764,2504.2,2504.1,2.10742]
[1747569073760,1.2764,2504.2,2504.1,3.32370664]
[1747569076366,2.07479,2504.2,2504.1,3.32370664]
[1747569077859,2.07479,2504.2,2504.1,1.21628664]
[1747569078265,2.07479,2504.2,2504.1,2.01470664]
[1747569078457,1.2764,2504.2,2504.1,3.31920664]
[1747569078867,2.46508782,2504.3,2504.2,0.79839]
[1747569079167,1.66669782,2504.3,2504.2,0.79839]
[1747569079364,0.99619782,2504.3,2504.2,2.10289]
[1747569084474,1.79455782,2504.3,2504.2,2.10289]
[1747569085071,1.79455782,2504.3,2504.2,3.31917664]
[1747569085372,1.79455782,2504.3,2504.2,1.21628664]
[1747569085767,3.76825782,2504.3,2504.2,1.21628664]
[1747569086777,0.79839,2504.2,2504.1,3.15018003]
[1747569086973,2.09559,2504.2,2504.1,3.15018003]
[1747569087173,2.09559,2504.2,2504.1,0.09218003]
[1747569087374,9.89459,2504.2,2504.1,0.09218003]
[1747569092371,11.22285377,2504.2,2504.1,0.09218003]
[1747569093077,11.22285377,2504.2,2503.5,1.19429473]
[1747569093078,1.99615,2504.0,2503.4,6.29629473]
[1747569093271,0.79862,2503.5,2503.4,7.46009473]
[1747569093876,0.79862,2503.5,2503.4,4.25229473]
[1747569094572,2.10462,2503.5,2503.4,4.25229473]
[1747569095279,2.10462,2503.5,2503.4,4.34447476]
[1747569096368,9.90462,2503.5,2503.4,4.34447476]
[1747569096579,9.90462,2503.5,2503.4,3.15018003]
[1747569096777,11.22912,2503.5,2503.4,3.15018003]
[1747569096983,11.22911,2503.5,2503.4,3.15018003]
[1747569097683,12.22466287,2503.5,2503.4,3.15018003]
[1747569099780,0.99555287,2503.5,2503.4,3.94883003]
[1747569100487,0.99555287,2503.5,2503.4,4.62813003]
[1747569100784,0.99555287,2503.5,2503.4,7.12789832]
[1747569101785,0.99555287,2503.5,2503.4,15.33569832]
[1747569101984,0.6627177,2503.9,2503.6,1.99647]
[1747569102285,1.4612077,2503.9,2503.8,0.79852]
[1747569102680,0.6627177,2503.9,2503.8,1.9438]
[1747569103076,0.6627177,2503.9,2503.8,5.0018]
[1747569103585,1.4612077,2503.9,2503.8,5.80032]
[1747569103972,1.4612077,2503.9,2503.8,5.0018]
[1747569104276,1.4612077,2503.9,2503.8,5.80032]
[1747569104984,1.4612077,2503.9,2503.8,3.058]
[1747569105183,2.7553077,2503.9,2503.8,3.058]
[1747569105886,2.09259,2503.9,2503.8,3.058]
[1747569107082,13.09739,2503.9,2503.8,3.058]
[1747569108084,18.09739,2503.9,2503.8,3.058]
[1747569108476,13.09739,2503.9,2503.8,3.058]
[1747569110286,13.09739,2503.9,2503.8,3.15018003]
[1747569111080,0.79868,2503.3,2503.2,1.3144]
[1747569111279,9.79659,2503.5,2503.1,3.2078]
[1747569111587,0.79869,2503.3,2503.1,3.2078]
[1747569112385,2.08969,2503.3,2503.2,1.21358197]
[1747569112587,0.6424,2503.5,2503.4,0.79865]
[1747569112785,8.4424,2503.5,2503.4,0.79865]
[1747569112982,9.24102,2503.5,2503.4,0.79865]
[1747569113182,0.79865,2503.4,2503.3,1.2648]
[1747569113383,2.08965,2503.4,2503.3,1.2648]
[1747569114089,7.8,2503.5,2503.4,0.79865]
[1747569114290,7.8,2503.5,2503.4,1.47615]
[1747569114589,7.8,2503.5,2503.4,3.37885]
[1747569115093,7.8,2503.5,2503.4,6.43685]
[1747569115292,8.59862,2503.5,2503.4,6.43685]
[1747569116091,8.59862,2503.5,2503.4,5.6382]
[1747569116896,2.7342,2503.6,2503.4,5.6382]
[1747569117099,9.088,2503.6,2503.5,2.04552]
[1747569117291,9.88658,2503.6,2503.5,2.04552]
[1747569117493,9.088,2503.6,2503.5,2.04552]
[1747569117992,1.291,2503.6,2503.5,2.04552]
[1747569118191,1.291,2503.6,2503.5,5.10352]
[1747569119702,8.45945037,2503.7,2503.6,0.79858]
[1747569119902,8.45945037,2503.7,2503.6,2.11068]
[1747569120398,0.66245037,2503.7,2503.6,2.11068]
[1747569121696,0.66245037,2503.7,2503.6,7.11068]
[1747569121888,0.66245037,2503.7,2503.6,8.32537371]
[1747569122788,0.66245037,2503.9,2503.8,0.79852]
[1747569123198,1.46094037,2503.9,2503.8,3.058]
[1747569123401,2.70664037,2503.9,2503.8,3.058]
[1747569123692,2.70664037,2503.9,2503.8,3.15018003]
[1747569124398,2.70664037,2503.9,2503.8,3.94870003]
[1747569125794,2.70664037,2503.9,2503.8,3.15018003]
[1747569127100,2.04419,2503.9,2503.8,3.15018003]
[1747569127595,9.7317,2503.9,2503.8,3.94870003]
[1747569128597,7.796,2503.9,2503.8,3.94870003]
[1747569129099,0.66245037,2504.0,2503.9,0.79849]
[1747569129401,0.66245037,2504.0,2503.9,2.17949]
[1747569130102,0.66245037,2504.0,2503.9,5.23749]
[1747569130498,0.66245037,2504.0,2503.9,6.4490844]
[1747569131400,0.7984,2504.2,2503.9,6.4490844]
[1747569131401,0.66245037,2504.2,2504.1,0.79842]
[1747569132009,0.66245037,2504.2,2504.1,2.14452]
[1747569132398,0.66245037,2504.2,2504.1,3.3561144]
[1747569133407,0.66245037,2504.2,2504.1,2.14452]
[1747569135506,2.05908,2504.3,2504.2,0.79839]
[1747569135705,2.05908,2504.3,2504.2,2.82949]
[1747569136103,1.2607,2504.3,2504.0,6.2658]
[1747569136411,2.81589,2504.2,2504.1,3.058]
[1747569137210,0.79842,2504.1,2504.0,3.85645]
[1747569137391,2.84992,2504.1,2504.0,3.85645]
[1747569137703,2.0515,2504.1,2504.0,3.85645]
[1747569138199,1.3624,2504.1,2504.0,3.85645]
[1747569138503,0.6891,2504.3,2504.2,0.79839]
[1747569138708,2.0515,2504.3,2504.2,0.79839]
[1747569139204,2.84986,2504.3,2504.2,0.79839]
[1747569139906,2.0515,2504.3,2504.2,0.79839]
[1747569140799,2.0515,2504.3,2504.2,0.89057003]
[1747569142307,2.84986,2504.3,2504.2,0.89057003]
[1747569143009,2.84986,2504.3,2504.2,0.09218003]
[1747569145016,3.51295318,2504.3,2504.2,0.09218003]
[1747569146010,2.71459318,2504.3,2504.2,0.09218003]
[1747569146217,3.51295318,2504.3,2504.2,0.09218003]
[1747569149008,2.84986,2504.3,2504.2,0.09218003]
[1747569151618,7.0515,2504.3,2503.7,1.19392576]
[1747569151814,0.79852,2503.8,2503.7,1.19392576]
[1747569152123,8.59052,2503.8,2503.7,1.19392576]
[1747569152320,13.59052,2503.8,2503.7,1.19392576]
[1747569152619,8.59052,2503.8,2503.7,1.19392576]
[1747569152820,9.89322,2503.8,2503.7,1.19392576]
[1747569154926,0.79855,2503.7,2503.6,3.058]
[1747569155126,5.37445,2503.7,2503.6,3.058]
[1747569155828,4.5759,2503.7,2503.6,3.058]
[1747569156027,9.95965,2503.7,2503.6,3.058]
[1747569156227,9.95965,2503.7,2503.5,3.8566]
[1747569157327,1.3681,2503.6,2503.5,3.8566]
[1747569158222,1.3681,2503.6,2503.5,4.4819]
[1747569158731,0.99555287,2503.7,2503.6,0.79858]
[1747569158924,0.99555287,2503.7,2503.6,2.08358]
[1747569160121,1.79410287,2503.7,2503.6,1.285]
[1747569160931,1.79410287,2503.7,2503.6,2.08358]
[1747569161524,0.99555287,2503.7,2503.6,2.08358]
[1747569162423,0.66321048,2503.7,2503.6,2.08358]
[1747569166235,0.66321048,2503.7,2503.6,3.29317061]
[1747569167431,2.82852048,2503.9,2503.8,0.79852]
[1747569167935,2.03001048,2503.9,2503.8,0.79852]
[1747569168130,2.03001048,2503.9,2503.8,5.11052]
[1747569168337,2.82850048,2503.9,2503.8,4.312]
[1747569169231,2.82850048,2503.9,2503.8,5.11052]
[1747569170139,2.82850048,2503.9,2503.8,5.20270003]
[1747569170434,2.82850048,2503.9,2503.8,3.15018003]
[1747569173737,10.61850048,2503.9,2503.8,3.15018003]
[1747569174943,15.61850048,2503.9,2503.8,3.15018003]
[1747569175335,10.61850048,2503.9,2503.8,3.15018003]
[1747569175548,15.61850048,2503.9,2503.8,3.15018003]
[1747569176041,2.82850048,2503.9,2503.8,3.15018003]
[1747569176743,2.16529,2503.9,2503.8,3.15018003]
[1747569177140,0.79849,2503.9,2503.8,3.15018003]
[1747569177347,12.32606377,2504.0,2503.8,3.94870003]
[1747569177546,14.39342377,2504.0,2503.9,1.3776]
[1747569177745,0.79849,2503.9,2503.8,3.80268003]
[1747569177947,2.06739,2503.9,2503.8,3.80268003]
[1747569178447,4.53606377,2504.0,2503.9,0.79849]
[1747569178644,13.12452377,2504.0,2503.9,0.79849]
[1747569178947,9.91672377,2504.0,2503.9,2.07829]
[1747569179243,9.91672377,2504.0,2503.9,5.13629]
[1747569179448,9.91672377,2504.0,2503.9,4.3378]
[1747569179751,1.32826377,2504.0,2503.9,5.13629]
[1747569181151,0.663626,2504.0,2503.9,5.13629]
[1747569181346,1.462086,2504.0,2503.9,5.13629]
[1747569181547,0.663626,2504.0,2503.9,5.13629]
[1747569181747,1.462086,2504.0,2503.9,5.13629]
[1747569182345,1.462086,2504.0,2503.9,4.3378]
[1747569182547,6.045486,2504.0,2503.9,3.058]
[1747569184856,5.38186,2504.0,2503.9,3.058]
[1747569185447,5.38186,2504.0,2503.9,3.15018003]
[1747569186555,10.38186,2504.0,2503.9,2.42983652]
[1747569187146,10.38186,2504.0,2503.9,0.09218003]
[1747569188150,10.38186,2504.0,2503.9,3.15018003]
[1747569189551,10.38186,2504.0,2503.9,1.27046003]
[1747569189853,10.38186,2504.0,2503.9,3e-08]
[1747569190055,0.79878,2503.0,2502.9,1.19392576]
[1747569190248,16.37778,2503.0,2502.9,1.19392576]
[1747569190845,16.37778,2503.0,2502.9,2.49692576]
[1747569191041,1.3631,2503.2,2502.9,2.49692576]
[1747569191254,16.37775,2503.1,2502.9,6.35370576]
[1747569191551,16.37775,2503.1,2503.0,1.9619]
[1747569191751,15.579,2503.1,2503.0,2.76068]
[1747569192255,15.579,2503.1,2503.0,5.81868]
[1747569193152,16.37774,2503.1,2503.0,5.81868]
[1747569193353,0.79874,2503.1,2503.0,5.81868]
[1747569193549,0.79874,2503.1,2503.0,5.0199]
[1747569194359,1.79386729,2503.1,2503.0,5.0199]
[1747569195259,3.05326729,2503.1,2503.0,5.0199]
[1747569196657,3.05326729,2503.1,2503.0,3.058]
[1747569197658,2.05814,2503.1,2503.0,3.058]
[1747569199565,2.05814,2503.1,2503.0,3.15018003]
[1747569203850,17.64114,2503.1,2503.0,3.15018003]
[1747569205862,7.70664,2503.1,2503.0,3.15018003]
[1747569206162,23.28964,2503.1,2503.0,3.15018003]
[1747569206365,18.28964,2503.1,2503.0,3.15018003]
[1747569207056,23.28964,2503.1,2503.0,3.15018003]
[1747569208169,23.28964,2503.1,2503.0,2.34471003]
[1747569208466,23.28964,2503.1,2503.0,0.50476003]
[1747569208969,23.28964,2503.1,2503.0,3e-08]
[1747569219068,27.24277905,2503.1,2503.0,3e-08]
[1747569220579,19.45177905,2503.1,2503.0,3e-08]
[1747569220774,27.24377905,2503.1,2503.0,3e-08]
[1747569226882,33.87577905,2503.1,2503.0,3e-08]
[1747569228585,0.7989,2502.6,2502.5,3e-08]
[1747569228782,19.5917,2502.6,2502.5,3e-08]
[1747569229180,0.79893,2502.5,2502.4,0.46288003]
[1747569229384,2.16873,2502.5,2502.4,0.46288003]
[1747569229781,0.79896,2502.4,2502.3,0.6778]
[1747569230283,0.79896,2502.4,2502.3,3.7358]
[1747569232583,16.38396,2502.4,2502.3,2.92626]
[1747569233188,0.79919,2501.7,2501.6,2.56744051]
[1747569233681,0.79919,2501.7,2501.6,7.56744051]
[1747569234687,1.99767,2502.1,2501.6,8.36666051]
[1747569234889,7.794,2501.9,2501.7,1.2851]
[1747569235090,0.79917,2501.8,2501.7,1.2851]
[1747569235288,0.79917,2501.8,2501.7,6.2851]
[1747569235893,0.79917,2501.8,2501.7,6.9583]
[1747569236191,0.79917,2501.8,2501.7,8.16754051]
[1747569240986,0.79916,2501.9,2501.8,0.79914]
[1747569241187,0.79911,2502.0,2501.8,9.3573]
[1747569241386,0.79911,2502.0,2501.9,1.2993]
[1747569241993,0.79911,2502.0,2501.9,9.5071]
[1747569242192,0.79911,2502.0,2501.9,13.36422]
[1747569242382,0.79911,2502.0,2501.9,14.57346051]
[1747569242887,0.66125309,2502.2,2501.9,14.57346051]
[1747569243192,0.79906,2502.1,2502.0,2.16846]
[1747569243592,0.79906,2502.1,2502.0,7.16846]
[1747569244291,1.46030309,2502.2,2502.1,0.79906]
[1747569244491,0.66125309,2502.2,2502.1,2.79626]
[1747569244683,1.46027309,2502.2,2502.1,7.79626]
[1747569244884,1.32141134,2502.7,2502.1,16.78583]
[1747569245084,0.79878,2503.0,2502.6,3.2078]
[1747569245284,3.46004249,2503.1,2502.8,0.79882]
[1747569245481,0.79882,2502.9,2502.6,8.2078]
[1747569245688,3.46004249,2503.1,2502.6,8.2078]
[1747569245880,3.46004249,2503.1,2502.6,3.2078]
[1747569246084,0.79878,2503.0,2502.9,0.79879]
[1747569246493,0.79878,2503.0,2502.9,5.92363144]
[1747569246983,0.79878,2503.0,2502.9,6.33408195]
[1747569247187,0.79878,2503.0,2502.9,9.39208276]
[1747569247387,0.79878,2503.0,2502.9,4.39208276]
[1747569248090,0.79878,2503.0,2502.9,3.18284225]
[1747569248896,0.79878,2503.0,2502.9,3.82274225]
[1747569249100,0.79878,2503.0,2502.9,3.82275378]
[1747569249290,0.79878,2503.0,2502.9,3.18285378]
[1747569249896,2.16098,2503.0,2502.9,3.18285378]
[1747569250694,7.79,2503.0,2502.9,3.18285378]
[1747569250887,8.58877,2503.0,2502.9,3.62015378]
[1747569251496,9.95097,2503.0,2502.9,3.62015378]
[1747569251695,9.95097,2503.0,2502.9,3.18285378]
[1747569251899,10.59957,2503.0,2502.9,3.18285378]
[1747569252400,13.80737,2503.0,2502.9,3.18285378]
[1747569252696,13.80737,2503.0,2502.9,3.058]
[1747569252900,13.80737,2503.0,2502.9,3.18286262]
[1747569253196,21.19277,2503.0,2502.9,3.18286262]
[1747569253395,20.394,2503.0,2502.9,3.18286262]
[1747569253597,21.19277,2503.0,2502.9,3.61876262]
[1747569254102,13.15877,2503.0,2502.9,3.61876262]
[1747569254299,5.36877,2503.0,2502.9,3.61876262]
[1747569254596,5.36877,2503.0,2502.9,3.4939]
[1747569254805,5.36877,2503.0,2502.9,3.61875109]
[1747569256001,5.36877,2503.0,2502.9,3.18285109]
[1747569256606,5.36877,2503.0,2502.9,3.18285613]
[1747569258298,21.17977,2503.0,2502.9,3.18285613]
[1747569258499,21.17977,2503.0,2502.9,3.1828574]
[1747569258805,5.36877,2503.0,2502.9,8.1828574]
[1747569259211,5.36877,2503.0,2502.9,8.8105574]
[1747569259507,5.36877,2503.0,2502.9,3.8105574]
[1747569259907,5.36877,2503.0,2502.9,3.1828574]
[1747569260407,5.36877,2503.0,2502.9,3.27502921]
[1747569262009,2.16097,2503.0,2502.9,3.27502921]
[1747569262207,2.16097,2503.0,2502.9,3.27502946]
[1747569263709,2.16097,2503.0,2502.9,3.27502973]
[1747569264605,2.81457,2503.0,2502.9,3.27502973]
[1747569266010,2.81457,2503.0,2502.9,3.27503838]
[1747569267810,2.81457,2503.0,2502.9,3.27503795]
[1747569268905,18.81057,2503.0,2502.9,3.27503795]
[1747569269114,2.81457,2503.0,2502.9,3.27503795]
[1747569269306,18.80957,2503.0,2502.9,3.27503795]
[1747569269803,18.80957,2503.0,2502.9,3.2750375]
[1747569272505,18.79657,2503.0,2502.9,3.2750375]
[1747569272711,2.81457,2503.0,2502.9,3.2750375]
[1747569272905,18.79557,2503.0,2502.9,3.2750375]
[1747569273211,18.79357,2503.0,2502.9,3.2750375]
[1747569273512,18.79357,2503.0,2502.9,3.27504019]
[1747569273904,18.79157,2503.0,2502.9,3.27504019]
[1747569274209,2.81457,2503.0,2502.9,3.27504019]
[1747569274412,18.78857,2503.0,2502.9,3.27504019]
[1747569275208,2.81457,2503.0,2502.9,3.27504019]
[1747569275406,18.78557,2503.0,2502.9,3.275041]
[1747569276802,23.78557,2503.0,2502.9,3.275041]
[1747569277001,23.78557,2503.0,2502.9,1.383911]
[1747569277204,23.78557,2503.0,2502.9,0.217041]
[1747569277517,0.7989,2502.6,2502.5,1.19392576]
[1747569277701,16.7709,2502.6,2502.5,1.19392576]
[1747569278204,16.7709,2502.6,2502.5,4.25192576]
[1747569280022,16.7709,2502.6,2502.5,2.52108576]
[1747569280315,0.79903,2502.2,2502.1,0.00895884]
[1747569280517,16.76403,2502.2,2502.1,0.00895884]
[1747569281205,18.07593,2502.2,2502.1,0.00895884]
[1747569285715,18.70113,2502.2,2502.1,0.00895884]
[1747569288323,19.01442259,2502.2,2502.1,0.00895884]
[1747569289820,3.04942259,2502.2,2502.1,0.10113887]
[1747569290020,18.98442259,2502.2,2502.1,0.10113887]
[1747569292329,3.04942259,2502.2,2502.1,0.10113887]
[1747569292623,18.97542259,2502.2,2502.1,0.10113887]
[1747569294123,18.96842259,2502.2,2502.1,0.10113887]
[1747569296323,18.65513,2502.2,2502.1,0.10113887]
[1747569296725,2.73613,2502.2,2502.1,0.10113887]
[1747569296919,10.11293,2502.2,2502.1,0.10113887]
[1747569297128,18.05893,2502.2,2502.1,0.72473887]
[1747569298918,18.05893,2502.2,2502.1,0.10113887]
[1747569300322,17.99993,2502.2,2502.1,0.10113887]
[1747569302225,2.11093,2502.2,2502.1,0.10113887]
[1747569302429,17.99293,2502.2,2502.1,1.42843887]
[1747569302626,4.00679,2502.4,2502.1,1.86533887]
[1747569302827,3.2078,2502.4,2502.2,0.4369]
[1747569303030,0.799,2502.3,2502.2,0.4369]
[1747569303231,0.799,2502.3,2502.2,1.64062178]
[1747569303531,0.799,2502.3,2502.2,6.64062178]
[1747569305432,0.799,2502.3,2502.2,7.43965178]
[1747569305626,0.799,2502.3,2502.2,6.64062178]
[1747569306029,0.799,2502.3,2502.2,6.73280181]
[1747569307131,0.799,2502.3,2502.2,7.53183181]
[1747569307730,1.3034,2502.5,2502.2,6.73280181]
[1747569307933,0.79888,2502.7,2502.6,0.79889]
[1747569308136,5.3293545,2502.8,2502.7,0.6294]
[1747569308433,4.00664,2502.8,2502.7,0.6294]
[1747569308821,4.20048858,2503.1,2502.7,5.6294]
[1747569309025,0.79884,2502.8,2502.7,1.0665]
[1747569309234,0.79884,2502.8,2502.7,0.6294]
[1747569309435,0.79884,2502.8,2502.7,6.83312178]
[1747569310332,0.79884,2502.8,2502.7,7.63199178]
[1747569311333,0.79883,2502.9,2502.8,0.79881]
[1747569311827,0.7988,2503.0,2502.9,0.79878]
[1747569312235,0.7988,2503.0,2502.9,8.85678]
[1747569312936,0.7988,2503.0,2502.9,8.058]
[1747569313437,0.7988,2503.0,2502.9,3.058]
[1747569313638,2.0592,2503.0,2502.9,3.058]
[1747569313837,2.7348,2503.0,2502.9,3.058]
[1747569318750,18.6488,2503.0,2502.9,3.058]
[1747569319155,2.7348,2503.0,2502.9,3.058]
[1747569319353,10.6728,2503.0,2502.9,3.058]
[1747569320157,10.6728,2503.0,2502.9,3.15018003]
[1747569322056,10.6728,2503.0,2502.9,3e-08]
[1747569322953,15.6728,2503.0,2502.9,3e-08]
[1747569327759,15.66601127,2503.0,2502.9,3e-08]
[1747569328863,2.72801127,2503.0,2502.9,3e-08]
[1747569329063,18.65401127,2503.0,2502.9,3.05800003]
[1747569329749,19.97672577,2503.0,2502.9,3.05800003]
[1747569330572,4.05072577,2503.0,2502.9,3.05800003]
[1747569330757,12.00472577,2503.0,2502.9,3.05800003]
[1747569332264,11.32912577,2503.0,2502.9,3.05800003]
[1747569332764,10.00641127,2503.0,2502.9,3.05800003]
[1747569333862,2.05241127,2503.0,2502.9,3.05800003]
[1747569334165,8.74501127,2503.0,2502.9,3.05800003]
[1747569335662,0.79201127,2503.0,2502.9,8.05800003]
[1747569336059,0.79201127,2503.0,2502.9,9.32130003]
[1747569336661,0.79201127,2503.0,2502.9,9.97770003]
[1747569338465,0.79201127,2503.0,2502.9,4.97770003]
[1747569341871,2.13261127,2503.0,2502.9,4.97770003]
[1747569342970,2.13261127,2503.0,2502.9,4.32130003]
[1747569344374,2.13261127,2503.0,2502.9,3.05800003]
[1747569346174,0.79201127,2503.0,2502.9,3.05800003]
[1747569348471,2.15261127,2503.0,2502.9,3.05800003]
[1747569349578,10.10461127,2503.0,2502.9,3.05800003]
[1747569351277,8.74401127,2503.0,2502.9,3.05800003]
[1747569352279,0.79201127,2503.0,2502.9,3.05800003]
[1747569352979,2.07871127,2503.0,2502.9,3.05800003]
[1747569359478,17.86571127,2503.0,2502.9,3.05800003]
[1747569361982,2.07871127,2503.0,2502.9,3.05800003]
[1747569362182,9.97271127,2503.0,2502.9,3.05800003]
[1747569362983,2.07871127,2503.0,2502.9,3.05800003]
[1747569363183,9.97271127,2503.0,2502.9,3.05800003]
[1747569364085,10.96640662,2503.0,2502.9,3.05800003]
[1747569365488,10.96640662,2503.0,2502.9,2.24447003]
[1747569365687,10.96640662,2503.0,2502.9,0.60711006]
[1747569366183,10.96640662,2503.0,2502.9,6e-08]
[1747569366985,11.60410662,2503.0,2502.9,6e-08]
[1747569367288,19.50110662,2503.0,2502.9,6e-08]
[1747569367677,19.49910662,2503.0,2502.9,6e-08]
[1747569368085,19.49910662,2503.0,2502.9,3.05800006]
[1747569368391,19.49710662,2503.0,2502.9,3.05800006]
[1747569369788,3.71010662,2503.0,2502.9,3.05800006]